bitfinex-derivatives/quotes_ETHF0:USTF0_20250123
["timestamp","ask_amount","ask_price","bid_price","bid_amount"]
[1737649464764,3.81812,3276.5,3275.9,3.93499505]
[1737649464765,4.55540508,3276.4,3275.9,3.93499505]
[1737649464961,7.15287508,3276.5,3276.1,5.96133078]
[1737649465164,5.1818,3277.6,3275.9,3.93499505]
[1737649465165,3.2078,3276.9,3276.4,5.96133078]
[1737649465360,3.2078,3276.9,3276.8,0.61025]
[1737649466066,0.61021,3277.1,3276.8,15.96133078]
[1737649466366,0.61474868,3277.3,3277.2,0.61018]
[1737649466773,0.61474868,3277.3,3276.7,2.86269505]
[1737649466965,0.61474868,3277.3,3277.2,0.61018]
[1737649467265,0.00457868,3277.3,3277.2,0.61018]
[1737649467466,0.61473868,3277.3,3277.2,0.61018]
[1737649467666,0.6102,3277.1,3277.0,0.61021]
[1737649467862,0.6102,3277.2,3277.1,0.61019]
[1737649468061,0.00457868,3277.3,3276.4,1.52579]
[1737649468268,0.61023,3277.0,3276.9,0.61023]
[1737649468765,0.61025,3276.9,3276.8,0.61025]
[1737649469155,3.2078,3277.1,3276.8,15.96133078]
[1737649469359,3.2078,3277.1,3277.0,6.57155078]
[1737649469759,3.2078,3277.1,3276.8,2.1532]
[1737649469960,3.2078,3277.1,3276.8,8.11453078]
[1737649470160,0.61024,3276.9,3276.8,2.76344]
[1737649470361,3.93345476,3277.0,3276.9,0.61024]
[1737649470554,3.2078,3277.1,3277.0,0.61022]
[1737649470765,3.2078,3277.1,3277.0,6.57155078]
[1737649471067,0.00457868,3277.3,3277.0,6.57155078]
[1737649471068,0.00457868,3277.3,3277.2,0.61018]
[1737649471266,8.34666373,3277.8,3277.2,5.96133078]
[1737649471465,8.34666373,3277.8,3277.7,0.61009]
[1737649471671,8.95673373,3277.8,3277.7,0.61009]
[1737649471964,12.68127562,3277.8,3277.0,1.52555]
[1737649472264,3.81799,3277.2,3277.1,0.61018]
[1737649472470,3.49398884,3277.2,3277.1,0.00457868]
[1737649472669,8.15263005,3277.2,3277.1,0.00457868]
[1737649473068,13.53503177,3277.2,3277.1,0.00457868]
[1737649473371,1.52558,3277.0,3275.9,1.52606]
[1737649473568,0.61035,3276.4,3276.3,0.61034]
[1737649473768,0.28618884,3276.5,3276.4,0.61033]
[1737649473973,3.2078,3276.6,3276.5,6.57164078]
[1737649474279,3.2078,3277.6,3277.5,0.61012]
[1737649474468,8.68e-06,3277.7,3277.6,0.61011]
[1737649474661,10.74382296,3278.8,3278.3,5.96133078]
[1737649474861,10.74382296,3278.8,3277.6,4.92519505]
[1737649474862,0.99236373,3278.5,3278.4,12.64178583]
[1737649475264,0.99236373,3278.5,3278.4,22.64177211]
[1737649475970,0.00457868,3278.8,3278.4,22.03181211]
[1737649476166,0.00457868,3278.8,3278.5,5.96133078]
[1737649476370,0.00457868,3278.8,3278.4,3.2078]
[1737649476371,0.60994,3278.5,3278.4,3.2078]
[1737649476674,4.65192028,3278.5,3278.1,0.61458868]
[1737649476873,0.60996,3278.4,3278.2,5.96133078]
[1737649477078,0.28608942,3278.4,3278.2,6.57132078]
[1737649477271,4.04198028,3278.5,3278.2,5.96133078]
[1737649477673,0.60999,3278.2,3278.1,0.00457868]
[1737649477977,4.03421835,3278.2,3278.1,0.00457868]
[1737649478172,4.64420835,3278.2,3278.1,0.00457868]
[1737649478373,0.60999,3278.2,3278.1,0.00457868]
[1737649478579,4.64420835,3278.2,3278.1,0.00457868]
[1737649479676,6.73020835,3278.2,3278.1,0.00457868]
[1737649480172,7.01633576,3278.2,3278.1,0.00457868]
[1737649480478,7.01633724,3278.2,3278.1,0.00457868]
[1737649481174,6.40634724,3278.2,3278.1,0.00457868]
[1737649481376,6.12021835,3278.2,3278.1,0.00457868]
[1737649481678,6.12021835,3278.2,3278.1,0.61458868]
[1737649482071,6.12021835,3278.2,3278.1,0.00457868]
[1737649482275,6.12021835,3278.2,3278.1,6.57591946]
[1737649482473,6.73020835,3278.2,3278.1,5.96590946]
[1737649482778,6.12021835,3278.2,3278.1,0.00457868]
[1737649482982,6.73020835,3278.2,3278.1,0.00457868]
[1737649483776,6.12021835,3278.2,3278.1,0.61458868]
[1737649483981,0.60992,3278.6,3278.2,0.60998]
[1737649484281,3.2078,3278.7,3278.1,0.00457868]
[1737649484478,4.65805023,3278.2,3278.1,0.00457868]
[1737649484677,0.60999,3278.2,3278.1,0.00457868]
[1737649484878,7.20656246,3278.2,3277.0,3.2078]
[1737649485178,3.2078,3278.1,3277.1,1.5255]
[1737649485378,3.2078,3278.1,3278.0,0.61003]
[1737649485686,3.99876246,3278.0,3277.9,0.61004]
[1737649485880,4.02810302,3278.1,3277.6,5.96133078]
[1737649486183,4.63814302,3278.0,3277.8,0.61005]
[1737649486375,0.61005,3277.9,3277.7,0.61008]
[1737649486570,0.61009,3277.8,3277.5,0.61011]
[1737649486769,4.02810302,3277.9,3277.6,5.96133078]
[1737649486974,3.2078,3278.2,3277.9,5.96133078]
[1737649487180,3.2078,3278.7,3278.0,5.96133078]
[1737649487383,0.28610777,3278.6,3278.0,6.57135078]
[1737649487584,0.28610777,3278.6,3278.0,5.96133078]
[1737649487886,4.03142208,3278.5,3278.0,6.57136078]
[1737649488187,0.28610777,3278.4,3277.5,3.2078]
[1737649488380,0.61008,3277.8,3277.7,5.96133078]
[1737649488777,4.27863182,3277.8,3277.7,0.61008]
[1737649488974,3.99247756,3277.8,3277.7,16.57139706]
[1737649489178,0.61,3278.2,3278.1,0.61]
[1737649489378,3.2078,3278.5,3277.3,4.73317]
[1737649489379,0.28610151,3278.4,3278.3,6.57131078]
[1737649489684,4.27857277,3278.4,3278.3,6.57131078]
[1737649489881,4.60243756,3278.4,3278.3,5.96133078]
[1737649490077,0.60999,3278.2,3278.1,0.61001]
[1737649490278,0.60999,3278.3,3278.2,5.96133078]
[1737649490480,0.89608858,3278.3,3278.2,5.96133078]
[1737649490682,0.28609858,3278.3,3277.5,3.2078]
[1737649490886,4.24641068,3278.3,3277.9,5.96133078]
[1737649491179,0.28609858,3278.2,3277.5,3.2078]
[1737649491385,0.28609858,3278.2,3277.7,0.61007]
[1737649491572,0.28609858,3278.2,3277.6,5.96133078]
[1737649491573,0.61009,3277.7,3277.6,5.96133078]
[1737649491978,0.61009,3277.7,3277.6,6.57144078]
[1737649492682,0.61009,3277.7,3277.6,5.96133078]
[1737649492982,7.14542529,3277.7,3276.3,3.2078]
[1737649493186,0.61032,3276.5,3276.3,6.57167078]
[1737649493377,0.61027,3276.7,3276.4,0.61032]
[1737649493582,3.93762529,3276.4,3275.9,3.2078]
[1737649493778,7.14542529,3276.4,3276.1,5.96133078]
[1737649494082,2.0843,3276.6,3276.3,5.96133078]
[1737649494273,2.0843,3276.6,3276.5,6.57164078]
[1737649494480,0.00457868,3277.3,3276.5,5.96133078]
[1737649494679,0.00457868,3277.3,3277.2,6.57151078]
[1737649494874,0.00457868,3277.3,3277.0,5.96133078]
[1737649494875,0.61018,3277.2,3277.0,5.96133078]
[1737649495083,0.6102,3277.1,3277.0,5.96133078]
[1737649495284,4.04925311,3277.1,3276.6,2.1642]
[1737649495580,5.57925179,3277.3,3276.6,2.1642]
[1737649495581,1.52999868,3277.3,3276.6,2.1642]
[1737649495783,1.52999868,3277.3,3276.3,3.2078]
[1737649495784,4.04925311,3277.2,3276.3,3.2078]
[1737649495981,0.61029,3276.6,3276.5,5.96133078]
[1737649496374,7.11689549,3276.6,3275.9,2.1642]
[1737649496577,0.61038,3276.2,3276.0,5.96133078]
[1737649496795,2.43118029,3276.5,3276.0,5.96133078]
[1737649496985,4.02036235,3276.1,3276.0,0.6104]
[1737649497186,2.1449,3276.5,3276.4,5.96133078]
[1737649497487,2.75521,3276.5,3276.4,5.96133078]
[1737649497886,0.61033,3276.4,3275.9,2.1642]
[1737649498091,0.61039,3276.1,3276.0,5.96133078]
[1737649498387,0.61038,3276.2,3276.0,5.96133078]
[1737649499387,0.61039,3276.1,3276.0,5.96133078]
[1737649499887,0.61038,3276.2,3276.0,5.96133078]
[1737649500086,3.9160355,3276.4,3276.0,5.96133078]
[1737649500281,3.9160355,3276.4,3275.9,2.1642]
[1737649500487,0.61046,3275.8,3275.5,0.61049]
[1737649500688,0.61046,3275.8,3275.7,5.96133078]
[1737649500885,3.2078,3276.2,3275.6,5.96133078]
[1737649501191,0.61048,3275.6,3275.5,5.96133078]
[1737649501689,0.61046,3275.7,3275.4,0.61052]
[1737649501890,0.61046,3275.7,3275.4,5.96133078]
[1737649502092,3.93857266,3275.7,3275.4,5.96133078]
[1737649502288,0.6105,3275.5,3275.4,5.96133078]
[1737649502489,3.93857266,3275.7,3275.4,5.96133078]
[1737649502490,0.61048,3275.6,3275.4,5.96133078]
[1737649502691,0.61048,3275.6,3275.4,6.57183078]
[1737649502885,3.93857266,3275.7,3275.5,5.96133078]
[1737649503092,3.93857266,3275.7,3275.6,6.57181078]
[1737649503389,3.93857266,3275.7,3275.3,5.96133078]
[1737649503582,3.93857266,3275.7,3275.3,6.57185078]
[1737649503893,3.93857266,3275.7,3274.6,2.86352487]
[1737649504083,3.2078,3275.4,3274.8,5.96133078]
[1737649504297,3.2078,3274.9,3274.1,2.191]
[1737649504487,1.5264,3275.2,3274.3,5.96133078]
[1737649504488,0.6107,3274.4,3274.3,5.96133078]
[1737649504690,3.2078,3274.5,3274.0,5.96133078]
[1737649504888,3.89358901,3274.4,3274.0,5.96133078]
[1737649505092,3.2078,3274.9,3274.3,5.96133078]
[1737649505093,3.89358901,3274.5,3274.3,5.96133078]
[1737649505293,3.89358901,3274.7,3274.3,5.96133078]
[1737649505493,0.61065,3274.8,3274.4,0.6107]
[1737649505695,3.2078,3274.9,3274.3,5.96133078]
[1737649505995,7.26952487,3275.3,3274.6,0.61065]
[1737649505996,3.94609058,3274.7,3274.6,0.61065]
[1737649506292,6.02514,3275.3,3274.8,6.57195078]
[1737649506293,4.55664058,3275.2,3274.8,6.57195078]
[1737649506596,5.4146,3275.3,3274.8,5.96133078]
[1737649506793,5.4146,3275.3,3274.5,2.70737]
[1737649506997,5.4146,3275.3,3274.5,2.0967]
[1737649506998,3.96708882,3275.1,3274.5,2.0967]
[1737649507194,5.4146,3275.3,3275.2,5.96133078]
[1737649507501,2.2068,3275.3,3275.2,6.57188078]
[1737649507691,6.17388882,3275.3,3274.5,5.3045]
[1737649507885,6.17388882,3275.3,3275.0,5.96133078]
[1737649508189,0.61059,3275.1,3274.8,0.61061]
[1737649508388,6.17388882,3275.3,3275.0,5.96133078]
[1737649508598,6.17388882,3275.3,3275.2,0.61055]
[1737649508796,0.00457868,3275.5,3275.2,5.96133078]
[1737649509001,0.00457868,3275.5,3275.4,6.57185078]
[1737649509697,0.00457868,3275.5,3275.4,19.43536193]
[1737649509893,0.00457868,3275.5,3275.4,16.57183706]
[1737649510290,0.00457868,3275.5,3275.4,19.43536193]
[1737649510492,3.2078,3275.8,3275.7,0.61046]
[1737649510692,3.2078,3275.8,3275.7,6.57179078]
[1737649510995,3.2078,3275.8,3275.7,16.57177706]
[1737649511192,3.81824,3275.8,3275.7,5.96133078]
[1737649511396,7.08617643,3275.8,3275.0,6.07132487]
[1737649511587,0.61048,3275.7,3275.5,0.6105]
[1737649511788,7.69663643,3275.8,3275.4,5.96590946]
[1737649511992,7.08617643,3275.8,3275.4,5.96590946]
[1737649512290,3.2078,3275.8,3275.7,6.57179078]
[1737649512486,3.2078,3275.8,3275.4,0.00457868]
[1737649512703,7.18923989,3275.8,3275.4,0.00457868]
[1737649512993,0.6105,3275.5,3275.4,0.00457868]
[1737649513301,4.58112039,3275.5,3275.4,0.00457868]
[1737649513597,4.25701384,3275.5,3274.6,3.2078]
[1737649513900,3.2078,3275.1,3274.6,3.2078]
[1737649514096,3.2078,3275.1,3275.0,0.61059]
[1737649514296,3.2078,3275.5,3274.6,3.2078]
[1737649514494,3.2078,3275.5,3274.7,5.96133078]
[1737649514495,0.61063,3274.8,3274.7,5.96133078]
[1737649514690,0.61068,3274.6,3274.4,0.6107]
[1737649514893,0.61068,3274.6,3274.5,5.96133078]
[1737649515400,4.05498705,3274.6,3273.2,3.2078]
[1737649515602,0.6108,3273.9,3273.8,5.96133078]
[1737649516292,0.61089,3273.4,3273.2,3.81871]
[1737649516490,0.61088,3273.5,3273.3,6.57224078]
[1737649516688,2.1643,3273.8,3273.7,6.57216078]
[1737649516890,7.18775232,3273.9,3273.2,3.2078]
[1737649516891,0.00457868,3274.2,3273.8,5.96133078]
[1737649517095,0.00457868,3274.2,3274.1,6.57209078]
[1737649517290,3.2078,3275.1,3274.1,5.96133078]
[1737649517494,2.1643,3275.4,3275.0,0.61059]
[1737649517700,3.96270205,3275.0,3274.5,3.2078]
[1737649517896,3.9379399,3275.3,3275.2,6.57188078]
[1737649518092,3.2078,3275.9,3275.5,0.61049]
[1737649518296,3.2078,3275.9,3275.5,5.96133078]
[1737649518498,3.9379399,3275.8,3275.4,0.00457868]
[1737649518901,3.9379399,3275.8,3275.4,0.61508868]
[1737649518902,0.6105,3275.5,3275.4,0.61508868]
[1737649519098,0.6105,3275.5,3275.4,0.00457868]
[1737649519601,3.8183,3275.5,3275.4,0.00457868]
[1737649520698,7.7763547,3275.5,3275.4,0.00457868]
[1737649520895,7.1658547,3275.5,3275.4,0.61509868]
[1737649521096,7.1658547,3275.5,3275.4,0.00457868]
[1737649521097,7.7763547,3275.5,3275.4,0.00457868]
[1737649522196,8.06272028,3275.5,3275.4,0.00457868]
[1737649522403,7.7763547,3275.5,3275.4,0.00457868]
[1737649522600,8.06271825,3275.5,3275.4,0.00457868]
[1737649522798,12.45221825,3275.5,3274.4,3.2078]
[1737649523106,12.45221825,3275.5,3272.9,3.49631587]
[1737649523107,3.2078,3274.9,3274.0,3.2078]
[1737649523310,0.61076,3274.2,3274.1,5.96133078]
[1737649523698,0.61077,3274.1,3273.9,0.61078]
[1737649523899,0.61078,3274.0,3273.9,5.96133078]
[1737649524099,3.89758267,3274.0,3273.5,3.2078]
[1737649524598,0.61085,3273.6,3273.5,3.2078]
[1737649525003,4.66112584,3273.6,3273.5,3.2078]
[1737649525906,3.2078,3274.1,3273.8,0.6108]
[1737649525907,3.81857,3274.1,3273.8,0.6108]
[1737649526101,0.89725943,3274.0,3273.8,6.57213078]
[1737649526406,3.2078,3274.1,3273.8,5.96133078]
[1737649526605,4.00444143,3273.9,3273.1,3.2078]
[1737649526908,0.61082,3273.8,3273.7,5.96133078]
[1737649527211,4.58329331,3273.8,3273.7,5.96133078]
[1737649527409,3.2078,3274.1,3273.7,5.96133078]
[1737649527704,0.61081,3273.8,3273.7,5.96133078]
[1737649528008,3.97247331,3274.0,3273.7,5.96133078]
[1737649528308,0.61081,3273.8,3273.7,5.96133078]
[1737649528507,0.6108,3273.9,3273.5,0.61086]
[1737649528708,0.61082,3273.8,3273.7,0.61083]
[1737649528903,4.63627604,3273.8,3273.7,0.61083]
[1737649529208,3.81858,3274.1,3273.8,0.61081]
[1737649529413,0.61079,3274.0,3273.9,0.61079]
[1737649529610,3.2078,3274.1,3273.5,3.2078]
[1737649529806,0.61082,3273.8,3273.7,3.88901078]
[1737649530017,0.61093,3273.2,3272.5,2.2138]
[1737649530217,3.2078,3272.6,3271.7,2.1713]
[1737649530410,4.73541,3272.6,3271.9,3.88901078]
[1737649530605,0.61113,3272.1,3271.9,3.88901078]
[1737649530809,4.04847174,3272.5,3272.3,3.88901078]
[1737649531112,4.04847174,3272.5,3272.3,4.50010078]
[1737649531414,3.21237868,3272.6,3272.5,0.61106]
[1737649531621,3.21237868,3272.6,3272.5,3.88901078]
[1737649531922,7.83904959,3272.6,3272.5,3.88901078]
[1737649532106,7.22800959,3272.6,3272.1,0.61112]
[1737649532410,0.61108,3272.4,3272.3,3.88901078]
[1737649532808,4.62671091,3272.4,3272.3,3.88901078]
[1737649533106,3.82342868,3272.6,3272.3,4.50009078]
[1737649533307,0.61108,3272.4,3272.3,3.88901078]
[1737649533512,4.59926133,3272.4,3272.3,3.88901078]
[1737649533715,3.98818133,3272.5,3271.3,3.2078]
[1737649533913,3.2078,3271.7,3271.5,3.88901078]
[1737649534112,0.61128,3271.3,3271.2,3.88901078]
[1737649534321,0.6113,3271.2,3271.1,3.88901078]
[1737649534722,0.61134,3271.0,3270.6,0.61141]
[1737649534922,3.92451627,3271.2,3270.3,3.2078]
[1737649534923,0.61133,3271.1,3270.9,3.88901078]
[1737649535127,0.61134,3271.0,3270.9,3.88901078]
[1737649535324,3.91063291,3271.0,3270.3,3.2078]
[1737649535628,3.2078,3270.8,3270.4,3.88901078]
[1737649535829,3.2078,3270.8,3270.7,0.61139]
[1737649536032,3.91063291,3270.9,3270.8,0.61137]
[1737649536232,0.00458596,3271.1,3271.0,0.61134]
[1737649536831,0.00458596,3271.1,3271.0,14.50033706]
[1737649537333,3.96109142,3271.1,3271.0,3.88901078]
[1737649537834,3.96109142,3271.1,3270.7,3.2078]
[1737649538139,3.96109142,3271.1,3270.8,0.61136]
[1737649538428,3.96109142,3271.1,3270.7,7.09681078]
[1737649538632,6.02819142,3271.1,3270.7,7.09681078]
[1737649538929,0.61136,3270.9,3270.7,7.09681078]
[1737649539138,6.02819142,3271.1,3270.7,3.2078]
[1737649539333,4.05476314,3270.8,3270.7,3.2078]
[1737649539536,4.05476314,3271.0,3270.7,7.09681078]
[1737649539832,2.07168596,3271.1,3270.7,7.09681078]
[1737649540035,2.07168596,3271.1,3270.7,3.88901078]
[1737649540335,4.06267255,3271.0,3270.8,0.61137]
[1737649540534,4.06267255,3271.0,3270.7,3.88901078]
[1737649540740,4.06267255,3271.0,3270.7,4.50039078]
[1737649541036,4.67402255,3271.0,3270.7,4.50039078]
[1737649541239,4.67401255,3271.0,3270.7,4.50039078]
[1737649541425,4.06267255,3271.0,3270.7,4.50039078]
[1737649541629,4.06267255,3271.0,3270.8,0.61136]
[1737649541831,4.06267255,3271.0,3270.9,0.61136]
[1737649542031,4.06267255,3271.0,3270.8,0.61137]
[1737649542333,4.06267255,3271.0,3270.7,3.88901078]
[1737649542737,4.06267255,3271.0,3270.2,3.2078]
[1737649543035,4.06267255,3271.0,3270.4,3.88901078]
[1737649543036,3.2078,3270.9,3270.4,3.88901078]
[1737649543245,3.2078,3270.9,3270.2,7.09681078]
[1737649543431,0.61145,3270.4,3270.2,7.09681078]
[1737649543739,0.6114,3270.7,3270.4,0.61144]
[1737649543939,3.2078,3270.9,3270.7,0.61138]
[1737649544233,3.9098879,3270.8,3270.7,0.61138]
[1737649544640,3.9098879,3270.8,3270.7,4.50039078]
[1737649545439,0.00458596,3271.1,3270.7,17.09679706]
[1737649545743,0.00458596,3271.1,3271.0,4.50035078]
[1737649546038,3.94235524,3271.1,3271.0,4.50035078]
[1737649546642,4.55367524,3271.1,3271.0,3.88901078]
[1737649546840,3.94235524,3271.1,3271.0,4.50035078]
[1737649548140,0.61590596,3271.1,3271.0,3.88901078]
[1737649548341,4.52833304,3271.1,3271.0,3.88901078]
[1737649549539,3.91701304,3271.1,3271.0,4.50035078]
[1737649549743,4.52833304,3271.1,3271.0,4.50035078]
[1737649549941,3.91701304,3271.1,3271.0,4.50035078]
[1737649550239,4.52833304,3271.1,3271.0,4.50035078]
[1737649550441,3.91701304,3271.1,3271.0,4.50035078]
[1737649551244,0.00458596,3271.1,3271.0,14.50033706]
[1737649552244,0.00458596,3271.1,3271.0,3.88901078]
[1737649552639,4.51067288,3271.1,3271.0,4.50035078]
[1737649552839,4.51067288,3271.1,3271.0,3.88901078]
[1737649553039,3.89935288,3271.1,3270.7,3.2078]
[1737649553240,0.61135,3271.0,3270.9,4.50036078]
[1737649553538,4.54894125,3271.0,3270.9,3.88901078]
[1737649553742,6.09629125,3271.0,3269.7,1.52894]
[1737649553933,0.61137,3270.8,3270.7,3.88901078]
[1737649554334,4.03194876,3270.8,3270.4,0.61144]
[1737649554540,0.61139,3270.7,3270.6,3.88901078]
[1737649554949,4.03194876,3270.7,3270.6,3.88901078]
[1737649555243,2.87289847,3270.7,3269.8,2.265]
[1737649555451,2.87289847,3270.7,3270.3,3.88901078]
[1737649555745,0.61146,3270.4,3270.3,3.88901078]
[1737649556144,4.57730723,3270.4,3270.3,3.88901078]
[1737649556347,5.49449723,3270.4,3269.7,3.2078]
[1737649556643,5.49449723,3270.4,3269.8,4.50056078]
[1737649556644,0.61152,3270.0,3269.8,4.50056078]
[1737649556848,0.61154,3269.9,3269.8,3.88901078]
[1737649557040,4.59409338,3269.9,3269.8,3.88901078]
[1737649557242,0.61153,3270.0,3269.8,4.50057078]
[1737649557442,2.0732,3270.1,3269.8,3.88901078]
[1737649557641,3.98255338,3269.9,3269.8,4.50055078]
[1737649557843,3.98255338,3270.0,3269.8,3.88901078]
[1737649558044,3.2078,3270.6,3270.0,3.88901078]
[1737649558250,2.2673,3270.5,3270.3,3.88901078]
[1737649558556,6.32432256,3270.5,3270.3,3.88901078]
[1737649558854,6.32432256,3270.5,3270.4,4.50046078]
[1737649559245,4.05702256,3270.5,3270.4,14.50044706]
[1737649559549,0.6114,3270.7,3270.5,0.61142]
[1737649559750,0.61142,3270.6,3270.5,3.88901078]
[1737649559944,0.61142,3270.6,3269.9,0.61153]
[1737649559945,6.81341839,3270.6,3269.9,0.61153]
[1737649560145,6.81341839,3270.6,3269.9,3.88901078]
[1737649560146,2.55406723,3270.5,3269.9,3.88901078]
[1737649560345,0.61152,3270.0,3269.9,4.50055078]
[1737649560545,0.6115,3270.2,3270.0,0.61152]
[1737649560751,3.99803455,3270.0,3269.9,4.50055078]
[1737649561056,3.99803455,3270.1,3270.0,0.61152]
[1737649561351,3.2078,3271.5,3271.0,0.61134]
[1737649561546,0.28676587,3271.4,3271.0,14.50033706]
[1737649561748,2.87289847,3271.7,3271.0,14.50033706]
[1737649562052,0.4063342,3271.6,3271.0,14.50033706]
[1737649562249,0.69301623,3272.1,3272.0,0.61115]
[1737649562456,2.87289847,3273.3,3272.2,3.88901078]
[1737649562749,4.00041698,3272.8,3272.4,3.2078]
[1737649562949,4.00041698,3272.8,3272.5,3.88901078]
[1737649563141,2.87289847,3273.3,3272.5,3.88901078]
[1737649563341,4.04774337,3272.7,3272.5,4.50006078]
[1737649563544,4.04774337,3272.7,3272.5,3.88901078]
[1737649563756,0.61102,3272.7,3272.4,3.81887]
[1737649564047,3.48395847,3272.5,3272.4,3.2078]
[1737649564452,7.54382544,3272.5,3272.4,3.2078]
[1737649564646,9.82292544,3272.5,3272.4,3.2078]
[1737649565153,17.41966544,3272.5,3272.3,0.00458596]
[1737649565463,17.41966544,3272.5,3271.3,3.2078]
[1737649565464,0.61126,3271.4,3271.3,3.2078]
[1737649565642,2.87289847,3271.6,3270.7,3.2078]
[1737649565844,2.87289847,3271.2,3270.7,7.09681078]
[1737649566049,0.61137,3270.8,3270.7,3.2078]
[1737649566263,2.87289847,3271.2,3270.7,3.2078]
[1737649566549,4.53603665,3271.1,3270.7,3.81918]
[1737649566756,0.61135,3271.0,3270.7,3.2078]
[1737649566960,4.53147069,3271.0,3270.7,3.81918]
[1737649567155,0.00458596,3271.1,3270.8,3.88901078]
[1737649567350,0.61137,3270.8,3270.7,3.2078]
[1737649567552,3.9339206,3270.9,3270.1,3.2078]
[1737649567751,4.5453006,3270.8,3270.5,0.61142]
[1737649568059,0.00458596,3271.1,3270.7,3.88901078]
[1737649568060,3.9398596,3271.0,3270.7,3.88901078]
[1737649568252,0.61137,3270.8,3270.6,3.2078]
[1737649568458,0.6115,3270.1,3270.0,3.2078]
[1737649568661,1.52854,3270.6,3269.5,3.81941]
[1737649568662,0.61157,3269.8,3269.5,3.81941]
[1737649568856,0.6116,3269.6,3269.5,3.2078]
[1737649569061,6.0451265,3269.7,3268.6,3.2078]
[1737649569356,3.2078,3269.5,3268.9,3.88901078]
[1737649569748,0.61167,3269.3,3268.9,3.88901078]
[1737649569948,0.61167,3269.3,3268.2,2.1064]
[1737649569949,3.9646265,3269.4,3269.0,3.2078]
[1737649570156,3.21238596,3269.5,3269.3,3.88901078]
[1737649570560,4.06586309,3269.4,3269.3,4.50066078]
[1737649571049,4.06586309,3269.4,3269.3,7.75759795]
[1737649571253,5.96e-06,3269.5,3269.4,4.50065078]
[1737649571455,5.96e-06,3269.5,3269.4,7.70845078]
[1737649571654,5.96e-06,3269.5,3269.4,12.70845078]
[1737649572262,2.2655,3271.2,3269.4,8.2078]
[1737649572561,0.61137,3270.8,3270.7,3.2078]
[1737649572760,3.92907894,3270.9,3270.7,3.2078]
[1737649572962,2.2655,3271.2,3270.7,3.81919]
[1737649572963,3.92907894,3270.8,3270.7,3.81919]
[1737649573152,2.2655,3271.2,3270.7,3.81919]
[1737649573153,0.61134,3271.0,3270.9,3.88900482]
[1737649573355,3.89353506,3271.0,3270.8,3.88900482]
[1737649573568,2.2655,3271.2,3270.9,4.50034482]
[1737649573866,0.61587596,3271.3,3271.2,0.6113]
[1737649573867,0.00458596,3271.3,3271.2,0.6113]
[1737649574162,0.00458596,3271.3,3271.2,4.50030482]
[1737649574365,0.00458596,3271.3,3271.2,6.76270482]
[1737649574560,5.96e-06,3271.3,3271.2,6.76270482]
[1737649575064,9.54371093,3272.5,3272.4,0.61107]
[1737649575260,9.54371093,3272.5,3272.4,4.50006886]
[1737649575468,13.45805731,3272.5,3272.4,3.88899886]
[1737649576164,14.06911731,3272.5,3272.4,3.88899886]
[1737649576369,0.61109,3272.3,3272.2,3.2078]
[1737649576668,0.61114,3272.1,3271.7,3.819]
[1737649576871,0.61111,3272.2,3271.8,3.88899886]
[1737649577070,3.93020838,3272.0,3271.8,3.88899886]
[1737649577361,3.93020838,3272.1,3271.7,3.2078]
[1737649577564,0.00458596,3272.8,3272.7,4.50001886]
[1737649577774,0.00458596,3272.8,3272.5,3.81885]
[1737649577963,0.00458596,3272.8,3272.5,7.70784886]
[1737649577964,3.93020838,3272.7,3272.5,7.70784886]
[1737649578163,3.93020838,3272.7,3272.5,3.2078]
[1737649578466,3.93020838,3272.7,3272.6,4.50003886]
[1737649578765,0.00458596,3272.8,3272.7,0.61102]
[1737649579067,4.00944136,3272.8,3272.5,3.21025632]
[1737649579364,4.62045136,3272.8,3272.5,7.09925518]
[1737649579564,4.00944136,3272.8,3272.5,3.89145518]
[1737649579765,4.00944136,3272.8,3272.5,0.00245632]
[1737649579970,0.61104,3272.6,3272.5,3.89145518]
[1737649580165,2.69473,3272.7,3272.5,3.89145518]
[1737649580360,3.99443619,3272.6,3272.5,3.89145518]
[1737649580770,3.99443619,3272.6,3272.5,4.50251518]
[1737649580964,2.69472,3272.7,3272.5,3.89145518]
[1737649581164,3.9431248,3272.6,3272.5,3.89145518]
[1737649582060,4.5541648,3272.6,3272.5,0.00245632]
[1737649582266,3.9431248,3272.6,3272.5,3.89145518]
[1737649583078,4.5541648,3272.6,3272.5,0.00245632]
[1737649584577,3.9431248,3272.6,3272.5,3.89145518]
[1737649584868,3.9431248,3272.6,3272.5,4.50251518]
[1737649585070,3.9431248,3272.6,3272.5,0.00245632]
[1737649585575,4.5541648,3272.6,3272.5,0.00245632]
[1737649585768,3.9431248,3272.6,3272.5,0.00245632]
[1737649585976,3.9431248,3272.6,3272.5,4.50251518]
[1737649586169,3.9431248,3272.6,3272.5,3.89145518]
[1737649586772,4.5541648,3272.6,3272.5,0.00245632]
[1737649587676,4.84078967,3272.6,3272.5,0.00245632]
[1737649587875,3.9431248,3272.6,3272.5,0.00245632]
[1737649588374,3.9431248,3272.6,3272.5,3.89145518]
[1737649588971,4.5541648,3272.6,3272.5,0.00245632]
[1737649589269,3.9431248,3272.6,3272.5,0.00245632]
[1737649589476,4.5541648,3272.6,3272.5,0.00245632]
[1737649589872,4.5541648,3272.6,3272.0,3.2078]
[1737649589873,12.54872154,3272.6,3272.0,3.2078]
[1737649590075,0.61109,3272.4,3272.1,0.61113]
[1737649590377,4.06333046,3272.3,3272.0,3.2078]
[1737649590583,0.61111,3272.2,3272.0,7.09679886]
[1737649590972,4.06333046,3272.1,3272.0,7.09679886]
[1737649591482,4.06333046,3272.1,3272.0,7.70794886]
[1737649592080,5.28666995,3272.1,3271.6,3.2078]
[1737649592282,5.28666995,3272.1,3271.2,2.2624]
[1737649592283,2.87120881,3271.8,3271.4,3.88899886]
[1737649592490,2.87120881,3271.8,3271.2,2.2624]
[1737649592773,4.03215244,3271.7,3271.4,3.88899886]
[1737649592979,6.27755244,3271.7,3271.4,3.88899886]
[1737649593170,4.03215244,3271.7,3271.6,4.50021886]
[1737649593373,2.85647,3272.5,3271.7,1.52802]
[1737649593676,3.92761848,3272.1,3271.8,3.2078]
[1737649593883,3.92761848,3272.1,3272.0,4.50014886]
[1737649594080,2.2454,3272.5,3272.4,0.61107]
[1737649594381,2.2454,3272.5,3272.4,4.50006886]
[1737649594382,6.17141035,3272.5,3272.4,4.50006886]
[1737649594981,0.00458596,3272.8,3272.7,0.61102]
[1737649595184,2.1841,3273.8,3273.6,0.61085]
[1737649595376,11.92963866,3273.9,3273.6,7.70764886]
[1737649596276,11.92963866,3273.9,3272.7,2.87120881]
[1737649596277,27.40448678,3273.7,3273.0,3.2078]